bitfinex/quotes_BTCUSD_20250313
["timestamp","ask_amount","ask_price","bid_price","bid_amount"]
[1741879124589,1e-06,81709.0,81708.0,0.75315384]
[1741879126240,1e-06,81709.0,81708.0,0.91443384]
[1741879126999,0.0003382,81730.0,81724.0,0.556962]
[1741879127000,4e-07,81725.0,81724.0,0.556962]
[1741879127245,4e-07,81725.0,81724.0,0.85228384]
[1741879127894,4e-07,81725.0,81724.0,2.35228384]
[1741879128098,4e-07,81725.0,81724.0,2.36339281]
[1741879128508,4e-07,81725.0,81724.0,2.36939281]
[1741879128717,4e-07,81725.0,81724.0,2.37339281]
[1741879129230,4e-07,81725.0,81724.0,2.36939281]
[1741879130474,4e-07,81725.0,81724.0,2.39333866]
[1741879130650,4e-07,81725.0,81724.0,2.38733866]
[1741879130983,4e-07,81725.0,81724.0,2.39933866]
[1741879131563,0.0003382,81735.0,81734.0,0.25693]
[1741879131564,8e-07,81735.0,81734.0,0.25693]
[1741879131766,8e-07,81735.0,81734.0,0.69117184]
[1741879132814,8e-07,81735.0,81734.0,0.73767184]
[1741879133361,8e-07,81749.0,81734.0,0.72543784]
[1741879133576,8e-07,81749.0,81748.0,0.69112784]
[1741879133776,8e-07,81749.0,81748.0,1.62856784]
[1741879134708,8e-07,81749.0,81748.0,1.65123282]
[1741879135054,8e-07,81749.0,81748.0,1.65723282]
[1741879135244,8e-07,81749.0,81748.0,1.67546316]
[1741879135646,8e-07,81749.0,81748.0,1.68146316]
[1741879135812,8e-07,81749.0,81748.0,1.67391766]
[1741879136943,8e-07,81749.0,81748.0,1.66791766]
[1741879137175,8e-07,81749.0,81748.0,3.16191766]
[1741879137385,8e-07,81749.0,81748.0,3.16791766]
[1741879138034,8e-07,81749.0,81748.0,3.17391766]
[1741879138234,8e-07,81749.0,81748.0,3.16191766]
[1741879138450,8e-07,81749.0,81748.0,3.16791766]
[1741879138686,0.244584,81772.0,81762.0,0.01223]
[1741879138829,0.0125666,81773.0,81763.0,0.29420184]
[1741879138830,0.256823,81768.0,81763.0,0.29420184]
[1741879139031,0.24948887,81771.0,81766.0,0.244598]
[1741879139246,0.24459,81770.0,81767.0,0.11970099]
[1741879139567,0.01713087,81771.0,81767.0,0.11970099]
[1741879139894,0.256822,81769.0,81767.0,0.11970099]
[1741879140066,0.26171687,81771.0,81767.0,0.11970099]
[1741879140293,0.256819,81770.0,81767.0,0.11970099]
[1741879140433,0.256818,81770.0,81767.0,0.11970099]
[1741879140630,0.012229,81772.0,81767.0,0.11970099]
[1741879140907,0.0003386,81773.0,81771.0,0.244585]
[1741879141085,0.0003386,81773.0,81772.0,0.37882384]
[1741879141391,0.0003386,81773.0,81772.0,0.39105284]
[1741879142197,0.0003386,81773.0,81772.0,1.63424184]
[1741879142374,0.0003386,81773.0,81771.0,0.003]
[1741879142375,0.26171287,81772.0,81771.0,0.003]
[1741879142581,0.33961287,81772.0,81771.0,0.003]
[1741879142786,0.26178187,81750.0,81739.0,0.00912579]
[1741879143101,0.26178187,81750.0,81733.0,0.02501204]
[1741879143335,0.26178187,81750.0,81727.0,0.256951]
[1741879143336,0.26178187,81750.0,81723.0,0.036922]
[1741879143484,0.33958187,81750.0,81731.0,0.256937]
[1741879143686,0.33958187,81750.0,81731.0,0.012235]
[1741879143906,0.33958187,81750.0,81737.0,0.012234]
[1741879144085,0.33958187,81750.0,81738.0,0.012234]
[1741879144448,0.33958187,81750.0,81740.0,0.25691]
[1741879144654,0.00490187,81753.0,81752.0,0.012232]
[1741879144856,0.00490187,81753.0,81752.0,0.256874]
[1741879145186,0.00490187,81752.0,81749.0,0.0124772]
[1741879145388,0.00490187,81763.0,81762.0,0.01223]
[1741879145613,0.00490187,81752.0,81751.0,0.244644]
[1741879145999,0.00490187,81752.0,81750.0,0.11970099]
[1741879146166,0.00490187,81756.0,81752.0,0.256874]
[1741879146308,0.01916163,81752.0,81751.0,0.256877]
[1741879146713,0.01916163,81752.0,81751.0,0.39111884]
[1741879146956,0.00524047,81773.0,81769.0,0.012229]
[1741879147131,0.00524047,81773.0,81771.0,0.256811]
[1741879147346,0.00490187,81772.0,81771.0,0.256811]
[1741879147543,0.00490187,81772.0,81764.0,0.01223]
[1741879147544,0.26172187,81770.0,81768.0,0.01454085]
[1741879147744,0.00490187,81768.0,81761.0,0.406092]
[1741879148010,0.00490187,81762.0,81761.0,0.16148]
[1741879148329,0.012231,81757.0,81751.0,0.016232]
[1741879148544,0.00490187,81750.0,81749.0,0.0124772]
[1741879148746,0.00490187,81750.0,81749.0,0.0247092]
[1741879148944,0.01713387,81750.0,81749.0,0.0124772]
[1741879149346,0.00490187,81751.0,81750.0,0.012232]
[1741879149548,0.01916163,81769.0,81767.0,0.012229]
[1741879149549,0.00490187,81768.0,81767.0,0.012229]
[1741879149775,0.00490187,81768.0,81767.0,0.256826]
[1741879149971,0.00490187,81768.0,81765.0,0.25683]
[1741879150187,0.00490187,81768.0,81766.0,0.256827]
[1741879150399,0.00490187,81762.0,81761.0,0.16152]
[1741879150565,0.012232,81752.0,81751.0,0.16132]
[1741879150782,0.24463,81756.0,81751.0,0.012232]
[1741879150984,0.256877,81751.0,81749.0,0.006]
[1741879151186,0.25684,81763.0,81756.0,0.244628]
[1741879151388,0.01916083,81757.0,81754.0,0.244633]
[1741879151599,0.01916083,81757.0,81756.0,0.012231]
[1741879151775,0.01916083,81757.0,81756.0,0.14647284]
[1741879151977,0.012229,81768.0,81756.0,0.012231]
[1741879152371,0.012229,81768.0,81753.0,0.012231]
[1741879152372,0.256823,81768.0,81760.0,0.01223]
[1741879152539,0.256829,81767.0,81761.0,0.01223]
[1741879152741,0.01916046,81769.0,81766.0,0.244598]
[1741879153060,0.244601,81766.0,81761.0,0.004]
[1741879153224,0.244601,81766.0,81759.0,0.01454085]
[1741879153421,0.244601,81766.0,81759.0,0.13424184]
[1741879153626,0.244612,81762.0,81760.0,0.002]
[1741879153827,0.256842,81762.0,81759.0,0.13424184]
[1741879154074,0.03138946,81769.0,81762.0,0.01223]
[1741879154075,0.01916046,81769.0,81762.0,0.01223]
[1741879154332,0.01916046,81769.0,81763.0,0.256839]
[1741879154557,0.27598246,81769.0,81763.0,0.256839]
[1741879154755,0.01916046,81769.0,81765.0,0.01223]
[1741879154958,0.012228,81777.0,81769.0,0.012229]
[1741879155187,0.012228,81777.0,81767.0,0.012229]
[1741879155188,0.012228,81775.0,81767.0,0.012229]
[1741879155414,0.012228,81775.0,81768.0,0.256821]
[1741879155415,0.012228,81774.0,81768.0,0.256821]
[1741879155536,0.012227,81781.0,81772.0,0.012229]
[1741879155737,0.0815,81784.0,81772.0,0.256811]
[1741879155995,0.0003378,81790.0,81772.0,0.39105284]
[1741879156147,0.0003378,81790.0,81772.0,0.40255626]
[1741879156600,0.012228,81779.0,81772.0,0.13424184]
[1741879156753,0.0003384,81780.0,81772.0,0.37882384]
[1741879156964,0.012228,81779.0,81772.0,0.13424184]
[1741879157343,0.012228,81779.0,81772.0,1.64647084]
[1741879157520,0.0003384,81780.0,81772.0,1.64647084]
[1741879157695,0.2477784,81788.0,81781.0,0.012227]
[1741879161933,0.0008,81789.0,81788.0,0.39500184]
[1741879162139,0.013026,81789.0,81788.0,0.004]
[1741879162674,0.0008,81789.0,81788.0,0.004]
[1741879162885,0.013026,81789.0,81788.0,0.004]
[1741879163200,0.244547,81784.0,81779.0,0.405281]
[1741879163430,0.012226,81788.0,81783.0,0.012227]
[1741879163633,0.0009688,81789.0,81785.0,0.258767]
[1741879163840,0.0009688,81789.0,81786.0,0.244538]
[1741879164054,0.0009688,81789.0,81788.0,0.25676]
[1741879164255,0.0003378,81790.0,81788.0,0.25676]
[1741879164256,0.0003378,81790.0,81789.0,0.0115022]
[1741879164471,0.2570938,81790.0,81789.0,0.0115022]
[1741879165917,0.0003378,81790.0,81789.0,0.0115022]
[1741879166671,0.0003378,81790.0,81789.0,0.0237282]
[1741879166877,0.0003378,81790.0,81789.0,0.16319263]
[1741879167082,0.0003378,81790.0,81789.0,1.65797004]
[1741879167416,0.0003378,81790.0,81789.0,1.65897004]
[1741879167627,0.0003378,81790.0,81789.0,1.66097004]
[1741879167829,0.0003378,81790.0,81789.0,1.65897004]
[1741879168043,0.0003378,81790.0,81789.0,1.67064805]
[1741879168242,0.0125638,81790.0,81789.0,1.5165022]
[1741879168536,0.0125638,81790.0,81789.0,0.0155022]
[1741879168913,0.0003378,81790.0,81789.0,0.2722592]
[1741879169133,0.0003378,81790.0,81789.0,0.0155022]
[1741879170200,0.0003378,81790.0,81789.0,0.15142919]
[1741879170404,0.0003378,81790.0,81789.0,0.0195022]
[1741879170603,0.0003378,81790.0,81789.0,0.0317282]
[1741879170783,0.0003378,81790.0,81789.0,0.16597004]
[1741879171791,0.0003378,81790.0,81789.0,0.13920319]
[1741879172016,0.0003378,81790.0,81789.0,0.0195022]
[1741879172764,0.0003378,81790.0,81789.0,0.16597004]
[1741879174982,0.0003378,81790.0,81789.0,0.15446784]
[1741879175181,0.0003378,81790.0,81789.0,0.15569032]
[1741879175587,0.0003378,81790.0,81789.0,0.15446784]
[1741879175765,0.0003378,81790.0,81789.0,0.15569024]
[1741879175965,0.0003378,81790.0,81789.0,0.15602844]
[1741879176201,0.0003378,81790.0,81789.0,0.15480604]
[1741879176410,0.0003378,81790.0,81789.0,0.45602844]
[1741879176706,0.0003378,81790.0,81789.0,0.45480604]
[1741879177267,0.0003378,81790.0,81789.0,1.65480604]
[1741879178093,0.0003378,81790.0,81789.0,1.64258004]
[1741879178509,0.0003378,81790.0,81789.0,1.65480604]
[1741879179047,0.0003384,81791.0,81790.0,0.0111642]
[1741879179262,0.2570894,81791.0,81790.0,0.0111642]
[1741879179999,0.5570894,81791.0,81790.0,0.0111642]
[1741879180461,0.57624415,81791.0,81790.0,0.0141642]
[1741879180718,0.57624415,81791.0,81790.0,0.0181642]
[1741879180956,0.69594514,81791.0,81790.0,0.0111642]
[1741879181878,0.312226,81790.0,81789.0,4e-07]
[1741879182207,0.51502699,81790.0,81789.0,4e-07]
[1741879182384,0.51502699,81790.0,81772.0,0.0003376]
[1741879182385,0.556807,81773.0,81772.0,0.0003376]
[1741879182589,0.75960799,81773.0,81772.0,0.0003376]
[1741879183435,0.639907,81773.0,81772.0,0.0003376]
[1741879186097,0.244573,81775.0,81772.0,0.0003376]
[1741879186305,0.012228,81773.0,81772.0,0.0003376]
[1741879187066,0.01344406,81773.0,81772.0,0.0003376]
[1741879187253,0.012228,81773.0,81772.0,0.0003376]
[1741879187449,0.013228,81773.0,81772.0,0.0003376]
[1741879187727,0.001,81773.0,81772.0,0.0003376]
[1741879187873,0.013228,81773.0,81772.0,0.0003376]
[1741879188695,0.001,81773.0,81772.0,0.0125666]
[1741879189274,0.001,81773.0,81772.0,0.13226759]
[1741879190832,0.244546,81785.0,81777.0,0.256793]
[1741879191047,0.0123951,81790.0,81782.0,0.256776]
[1741879191245,0.0123951,81790.0,81786.0,0.012227]
[1741879191246,0.0001691,81790.0,81786.0,0.012227]
[1741879191478,0.0001691,81790.0,81789.0,0.256757]
[1741879191806,0.0001691,81790.0,81789.0,0.39099884]
[1741879192451,0.2569231,81790.0,81789.0,0.11970099]
[1741879192651,0.0001691,81790.0,81789.0,0.13192699]
[1741879193189,0.0123951,81790.0,81789.0,0.12070099]
[1741879193335,0.0001691,81790.0,81789.0,0.12070099]
[1741879194123,0.0001691,81790.0,81789.0,0.13292699]
[1741879194333,0.0001691,81790.0,81789.0,0.13392699]
[1741879194798,0.0001691,81790.0,81789.0,0.11970099]
[1741879195207,0.0001691,81790.0,81785.0,0.169867]
[1741879195208,0.0123951,81790.0,81785.0,0.012227]
[1741879195417,0.0001691,81790.0,81789.0,0.013226]
[1741879195586,0.0001691,81790.0,81789.0,0.016226]
[1741879195788,0.0001691,81790.0,81789.0,0.13492699]
[1741879196018,0.0001691,81790.0,81789.0,0.13792699]
[1741879196322,0.0001691,81790.0,81789.0,0.14946784]
[1741879196712,0.0001691,81790.0,81789.0,0.15369032]
[1741879197155,0.0001691,81790.0,81789.0,0.15069032]
[1741879197420,0.0001691,81790.0,81789.0,1.70039032]
[1741879197683,0.0003384,81791.0,81789.0,1.70039032]
[1741879197684,5e-07,81791.0,81790.0,0.27129485]
[1741879197905,6e-07,81794.0,81793.0,0.02676585]
[1741879198035,6e-07,81794.0,81793.0,0.14768908]
[1741879198475,6e-07,81794.0,81793.0,1.64768908]
[1741879198645,6e-07,81794.0,81793.0,1.94646684]
[1741879198854,8e-07,81801.0,81800.0,0.256722]
[1741879199053,8e-07,81801.0,81800.0,0.39096384]
[1741879199663,8e-07,81801.0,81800.0,2.26766384]
[1741879200601,0.2567198,81801.0,81800.0,0.006]
[1741879200757,8e-07,81801.0,81800.0,0.018224]
[1741879200963,8e-07,81801.0,81800.0,0.006]
[1741879201194,0.0122248,81801.0,81800.0,0.006]
[1741879201394,0.25793586,81801.0,81800.0,0.012]
[1741879201594,0.5567198,81801.0,81800.0,0.012]
[1741879201955,0.5567198,81801.0,81800.0,0.006]
[1741879202403,0.58720087,81801.0,81800.0,0.004]
[1741879202645,0.28720087,81801.0,81800.0,0.004]
[1741879202828,0.26804571,81801.0,81800.0,0.01]
[1741879203029,0.26804571,81801.0,81800.0,0.004]
[1741879203436,0.2567198,81801.0,81800.0,0.004]
[1741879203631,8e-07,81801.0,81800.0,0.004]
[1741879203951,8e-07,81801.0,81800.0,0.019224]
[1741879204172,8e-07,81801.0,81800.0,0.13892499]
[1741879204376,0.0122248,81801.0,81800.0,0.007]
[1741879204772,0.0234891,81801.0,81800.0,0.007]
[1741879205116,0.14440615,81801.0,81800.0,0.007]
[1741879205318,0.10550516,81801.0,81800.0,0.007]
[1741879205598,0.1042891,81801.0,81800.0,0.007]
[1741879205985,0.0234891,81801.0,81800.0,0.007]
[1741879206284,8e-07,81801.0,81800.0,0.007]
[1741879206785,8e-07,81801.0,81800.0,0.38342299]
[1741879207292,8e-07,81801.0,81800.0,1.89796384]
[1741879208235,8e-07,81801.0,81800.0,1.90560575]
[1741879208694,8e-07,81801.0,81800.0,1.91160575]
[1741879208876,8e-07,81801.0,81800.0,1.90860575]
[1741879209199,8e-07,81801.0,81800.0,1.64624184]
[1741879209401,8e-07,81801.0,81800.0,1.63170099]
[1741879209579,0.0122248,81801.0,81800.0,0.012]
[1741879209778,8e-07,81801.0,81800.0,0.13170099]
[1741879209979,8e-07,81801.0,81800.0,1.62570099]
[1741879210499,0.0122248,81801.0,81800.0,0.011]
[1741879210725,0.012225,81793.0,81788.0,0.012226]
[1741879210929,0.012226,81791.0,81790.0,0.11970099]
[1741879211264,0.012225,81796.0,81790.0,0.11970099]
[1741879211265,0.244518,81794.0,81790.0,0.11970099]
[1741879211482,0.256714,81803.0,81791.0,0.012226]
[1741879211689,0.012224,81802.0,81800.0,0.003]
[1741879211915,0.2448168,81807.0,81800.0,0.003]
[1741879212123,0.01915291,81801.0,81800.0,0.018224]
[1741879212329,8e-07,81801.0,81800.0,0.13192499]
[1741879212528,8e-07,81801.0,81800.0,0.14646584]
[1741879213181,8e-07,81801.0,81800.0,0.19628807]
[1741879213382,8e-07,81801.0,81800.0,0.20028807]
[1741879213588,8e-07,81801.0,81800.0,0.19906584]
[1741879213799,8e-07,81801.0,81800.0,0.1962879]
[1741879213966,8e-07,81801.0,81800.0,0.2022879]
[1741879214179,8e-07,81801.0,81800.0,0.20528796]
[1741879214377,8e-07,81801.0,81800.0,0.205288]
[1741879214573,8e-07,81801.0,81800.0,0.202288]
[1741879215077,8e-07,81801.0,81800.0,0.207288]
[1741879216822,8e-07,81801.0,81800.0,0.36448793]
[1741879217023,8e-07,81801.0,81800.0,0.36326584]
[1741879217238,6e-07,81808.0,81807.0,0.57124085]
[1741879217440,6e-07,81808.0,81807.0,0.69094184]
[1741879217880,6e-07,81808.0,81807.0,1.89094184]
[1741879218064,6e-07,81808.0,81807.0,0.28920399]
[1741879218478,6e-07,81808.0,81807.0,0.003]
[1741879218479,0.2567006,81808.0,81807.0,0.003]
[1741879218883,0.0122236,81808.0,81807.0,0.007]
[1741879219713,0.03137561,81808.0,81807.0,0.003]
[1741879220125,0.01915261,81808.0,81807.0,0.002]
[1741879220327,0.27584961,81808.0,81807.0,0.002]
[1741879220940,0.27584961,81808.0,81807.0,0.005]
[1741879221139,0.24448,81806.0,81800.0,0.256722]
[1741879221347,0.012224,81800.0,81796.0,0.15744]
[1741879221589,0.256738,81795.0,81794.0,0.0003382]
[1741879222377,0.27589269,81795.0,81794.0,0.0003382]
[1741879222817,0.26366769,81795.0,81794.0,0.0003382]
[1741879223021,0.01915469,81795.0,81794.0,0.2570792]
[1741879223232,0.012225,81796.0,81794.0,0.0003382]
[1741879223436,0.012225,81799.0,81794.0,0.0013382]
[1741879223673,0.012225,81797.0,81796.0,0.003]
[1741879224088,0.012224,81802.0,81795.0,0.012225]
[1741879224419,0.2566986,81808.0,81796.0,0.244507]
[1741879224573,0.2566986,81808.0,81799.0,0.012225]
[1741879224574,0.25671,81805.0,81799.0,0.012225]
[1741879224766,0.012224,81805.0,81795.0,0.11970099]
[1741879224966,0.012224,81804.0,81799.0,0.244499]
[1741879225182,0.0122236,81808.0,81802.0,0.012224]
[1741879225383,6e-07,81808.0,81804.0,0.012224]
[1741879225583,0.24449,81803.0,81798.0,0.256727]
[1741879225763,0.25671,81805.0,81798.0,0.37642799]
[1741879225967,0.012224,81800.0,81794.0,0.0135632]
[1741879226165,0.2444766,81808.0,81800.0,0.012224]
[1741879226393,0.2444766,81808.0,81802.0,0.244492]
[1741879226564,0.012224,81804.0,81799.0,0.002]
[1741879226769,0.012225,81795.0,81794.0,0.0003382]
[1741879226968,0.3,81795.0,81794.0,0.0003382]
[1741879227166,0.244507,81798.0,81794.0,0.0003382]
[1741879227167,0.012225,81798.0,81794.0,0.0003382]
[1741879227370,0.256714,81803.0,81797.0,0.25673]
[1741879227569,0.012225,81795.0,81794.0,0.0003382]
[1741879228210,0.312225,81795.0,81794.0,0.0033382]
[1741879228540,0.312225,81795.0,81794.0,0.0023382]
[1741879228983,0.312225,81795.0,81794.0,0.0043382]
[1741879229680,0.39665341,81795.0,81794.0,0.0043382]
[1741879229880,0.01915341,81795.0,81794.0,0.2610792]
[1741879230091,0.01915341,81795.0,81794.0,0.0043382]
[1741879230754,0.45229546,81795.0,81794.0,0.0043382]
[1741879230958,0.5001794,81795.0,81794.0,0.0023382]
[1741879231177,0.5001794,81795.0,81794.0,2e-07]
[1741879231178,0.5823794,81795.0,81794.0,2e-07]
[1741879231357,0.41357841,81795.0,81794.0,0.0020002]
[1741879231577,0.57589141,81795.0,81794.0,2e-07]
[1741879232008,0.256762,81788.0,81782.0,0.256776]
[1741879232159,0.256782,81782.0,81776.0,0.012228]
[1741879232357,0.256787,81780.0,81776.0,0.11970099]
[1741879232569,0.01018894,81781.0,81776.0,0.11970099]
[1741879232783,0.012228,81778.0,81775.0,0.002]
[1741879233019,0.01018894,81781.0,81776.0,0.24457]
[1741879233220,0.01018894,81781.0,81775.0,0.002]
[1741879233221,0.01018894,81781.0,81779.0,0.244559]
[1741879233393,0.01018894,81781.0,81780.0,0.012227]
[1741879233593,0.01018894,81781.0,81780.0,0.13192799]
[1741879233818,0.05940829,81811.0,81780.0,0.13192799]
[1741879233819,0.244472,81809.0,81800.0,0.012224]
[1741879233975,0.2445,81800.0,81795.0,0.244513]
[1741879234174,0.00121606,81799.0,81795.0,0.244511]
[1741879234389,0.012225,81799.0,81789.0,0.15724]
[1741879234590,0.012226,81790.0,81789.0,0.15724]
[1741879234790,0.012226,81790.0,81783.0,0.012227]
[1741879234791,0.012226,81788.0,81783.0,0.012227]
[1741879234993,0.02095867,81790.0,81785.0,0.012227]
[1741879235217,0.012226,81791.0,81783.0,0.012227]
[1741879235467,0.02095725,81789.0,81782.0,0.256778]
[1741879235677,0.244536,81788.0,81784.0,0.256771]
[1741879235875,0.00872982,81788.0,81786.0,0.256766]
[1741879236064,0.00872982,81788.0,81787.0,0.012226]
[1741879236369,0.012227,81785.0,81780.0,0.11970099]
[1741879236544,0.012227,81785.0,81783.0,0.003]
[1741879236749,0.00512301,81784.0,81782.0,0.256777]
[1741879236954,0.012227,81783.0,81782.0,0.0003382]
[1741879237160,0.31344306,81783.0,81782.0,0.0003382]
[1741879237362,0.44067272,81783.0,81782.0,2e-07]
[1741879238145,0.44067272,81783.0,81782.0,0.0050002]
[1741879239396,0.44267272,81783.0,81782.0,2e-07]
[1741879240098,0.44067272,81783.0,81782.0,2e-07]
[1741879240602,0.44267272,81783.0,81782.0,2e-07]
[1741879240795,0.44767272,81783.0,81782.0,2e-07]
[1741879240997,0.44267272,81783.0,81782.0,2e-07]
[1741879241296,0.32297173,81783.0,81782.0,2e-07]
[1741879242359,0.32097173,81783.0,81782.0,2e-07]
[1741879242691,0.32097173,81783.0,81782.0,0.2445522]
[1741879242692,0.01074473,81783.0,81782.0,0.2445522]
[1741879242851,0.01074473,81783.0,81782.0,0.2567792]
[1741879243087,0.0001691,81795.0,81791.0,0.244523]
[1741879243287,0.0001691,81795.0,81782.0,0.11970119]
[1741879243288,0.002,81783.0,81782.0,0.11970119]
[1741879243491,0.246549,81783.0,81782.0,0.11970119]
[1741879243691,0.00401946,81783.0,81782.0,0.11970119]
[1741879243916,0.002,81783.0,81782.0,0.13192819]
[1741879244094,0.012226,81791.0,81784.0,0.012227]
[1741879244295,0.24969361,81790.0,81785.0,0.242543]
[1741879244553,0.24969461,81790.0,81782.0,2e-07]
[1741879244757,0.012226,81788.0,81782.0,0.2445502]
[1741879245055,0.012227,81783.0,81782.0,2e-07]
[1741879245211,0.012227,81783.0,81782.0,0.0030002]
[1741879245413,0.01736657,81783.0,81782.0,0.0030002]
[1741879245636,0.00513957,81783.0,81782.0,0.0122272]
[1741879246055,0.256763,81788.0,81782.0,0.2577772]
[1741879246241,0.256763,81788.0,81782.0,0.0040002]
[1741879246242,0.012227,81784.0,81782.0,0.0040002]
[1741879246442,0.01344306,81783.0,81782.0,0.0040002]
[1741879246641,0.01737257,81783.0,81782.0,0.0040002]
[1741879247241,0.00514557,81783.0,81782.0,0.0030002]
[1741879247437,0.00514557,81783.0,81782.0,2e-07]
[1741879247642,0.012227,81784.0,81782.0,0.0030002]
[1741879247885,0.26190351,81783.0,81782.0,0.0030002]
[1741879248028,0.26190351,81783.0,81782.0,2e-07]
[1741879248223,0.00512751,81783.0,81782.0,2e-07]
[1741879248492,0.00512751,81783.0,81782.0,0.0122272]
[1741879248693,0.312226,81791.0,81786.0,0.012227]
[1741879248845,0.244538,81787.0,81782.0,0.0030002]
[1741879249049,0.244542,81786.0,81782.0,0.0030002]
[1741879249249,0.244542,81786.0,81782.0,0.0020002]
[1741879249458,0.244542,81786.0,81782.0,0.0040002]
[1741879249655,0.012227,81783.0,81782.0,0.0040002]
[1741879249912,0.012227,81783.0,81782.0,0.0020002]
[1741879250089,0.01857057,81783.0,81782.0,0.0020002]
[1741879250432,0.01735451,81783.0,81782.0,0.0050002]
[1741879250660,0.31735451,81783.0,81782.0,0.0020002]
[1741879250938,0.31735451,81783.0,81782.0,0.0040002]
[1741879251349,0.5128555,81783.0,81782.0,0.0040002]
[1741879251582,0.39315451,81783.0,81782.0,0.0040002]
[1741879251989,0.39315451,81783.0,81782.0,0.0050002]
[1741879252192,0.39315451,81783.0,81782.0,0.0010002]
[1741879252193,0.31735451,81783.0,81782.0,0.0010002]
[1741879252396,0.01735451,81783.0,81782.0,2e-07]
[1741879252527,0.01735451,81783.0,81782.0,0.0010002]
[1741879252731,0.00512751,81783.0,81782.0,0.0010002]
[1741879252930,0.01835451,81783.0,81782.0,2e-07]
[1741879253168,0.01935451,81783.0,81782.0,2e-07]
[1741879253414,0.02057057,81783.0,81782.0,2e-07]
[1741879253638,0.01835451,81783.0,81782.0,2e-07]
[1741879254788,0.01835451,81783.0,81782.0,0.0122272]
[1741879254789,0.00512751,81783.0,81782.0,0.0122272]
[1741879255348,0.0001691,81785.0,81782.0,0.0122272]
[1741879255349,0.0001691,81785.0,81783.0,0.244549]
[1741879255536,0.012227,81783.0,81782.0,2e-07]
[1741879255736,0.00511397,81784.0,81782.0,0.0122272]
[1741879255877,0.00715316,81784.0,81783.0,0.244549]
[1741879256078,0.00715316,81784.0,81782.0,2e-07]
[1741879256483,0.00715316,81784.0,81783.0,0.012227]
[1741879256684,0.0001691,81785.0,81784.0,0.256773]
[1741879257015,0.00737141,81785.0,81782.0,2e-07]
[1741879257225,0.0001691,81785.0,81783.0,0.002]
[1741879257404,0.26397388,81784.0,81783.0,0.002]
[1741879257602,0.00720088,81784.0,81783.0,0.002]
[1741879257828,0.00720088,81784.0,81783.0,0.258776]
[1741879258026,0.005123,81784.0,81783.0,0.258776]
[1741879258692,0.005123,81784.0,81783.0,0.002]
[1741879259043,0.005123,81784.0,81783.0,0.004]
[1741879259506,0.005123,81784.0,81783.0,0.002]
[1741879259706,0.010246,81784.0,81783.0,0.002]
[1741879259908,0.01234773,81784.0,81783.0,0.13392799]
[1741879260094,0.00722473,81784.0,81783.0,0.14646884]
[1741879260317,1e-07,81785.0,81784.0,0.57131385]
[1741879260459,1e-07,81785.0,81784.0,0.74071484]
[1741879260663,0.0001691,81795.0,81794.0,0.27128185]
[1741879260866,0.0001691,81795.0,81794.0,2.82302284]
[1741879261463,0.0001691,81795.0,81794.0,2.676516]
[1741879261582,0.0001691,81795.0,81794.0,2.80844199]
[1741879261783,0.0001691,81795.0,81794.0,2.55170099]
[1741879262194,0.0001691,81795.0,81794.0,2.56392599]
[1741879262417,0.0001691,81795.0,81794.0,2.56992599]
[1741879262866,0.0001691,81795.0,81794.0,2.57846684]
[1741879263009,0.0001691,81795.0,81794.0,2.58446684]
[1741879263216,0.0001691,81795.0,81794.0,2.58726684]
[1741879263411,0.0001691,81795.0,81794.0,2.58126684]
[1741879263662,0.0001691,81795.0,81794.0,2.58526684]
[1741879264024,0.0001691,81795.0,81794.0,2.58126684]
[1741879264228,0.0001691,81795.0,81794.0,2.58726684]
[1741879264635,0.0001691,81795.0,81794.0,2.58126684]
[1741879265292,0.0001691,81795.0,81794.0,2.57826684]
[1741879265749,0.0001691,81795.0,81794.0,2.58426684]
[1741879266349,0.0001691,81795.0,81794.0,0.006]
[1741879266562,0.2569071,81795.0,81794.0,0.012]
[1741879266694,0.45032387,81795.0,81782.0,2e-07]
[1741879266896,0.256776,81783.0,81782.0,2e-07]
[1741879268478,0.012226,81791.0,81782.0,0.0122272]
[1741879268700,0.012226,81791.0,81783.0,0.244549]
[1741879268701,0.256754,81790.0,81783.0,0.244549]
[1741879268882,0.012227,81783.0,81782.0,2e-07]
[1741879269116,0.256776,81783.0,81782.0,2e-07]
[1741879269615,0.012227,81786.0,81782.0,2e-07]
[1741879269767,0.01915538,81788.0,81786.0,0.24454]
[1741879269970,0.244537,81787.0,81783.0,0.012227]
[1741879270175,0.01915538,81788.0,81785.0,0.244543]
[1741879270377,0.01915538,81788.0,81783.0,0.012227]
[1741879270378,0.27591838,81788.0,81783.0,0.256773]
[1741879270582,0.01915538,81788.0,81785.0,0.244543]
[1741879270780,0.001,81786.0,81785.0,0.244543]
[1741879270975,0.00643178,81787.0,81784.0,0.012227]
[1741879271202,0.00643178,81787.0,81785.0,0.256767]
[1741879271455,0.00643178,81787.0,81783.0,0.012227]
[1741879271601,0.00643178,81787.0,81782.0,0.2567792]
[1741879271805,0.01865778,81787.0,81782.0,2e-07]
[1741879271972,0.013227,81786.0,81782.0,2e-07]
[1741879272394,0.001,81786.0,81782.0,0.2567782]
[1741879272598,0.001,81786.0,81785.0,0.25677]
[1741879273422,0.001,81787.0,81786.0,0.012227]
[1741879273624,0.012227,81786.0,81785.0,0.15468]
[1741879273806,0.24454,81787.0,81785.0,0.15468]
[1741879274028,0.00744364,81786.0,81785.0,0.399223]
[1741879274165,0.00744364,81786.0,81785.0,0.51892399]
[1741879274353,0.00744364,81786.0,81785.0,0.54569184]
[1741879274354,0.001,81786.0,81785.0,0.54569184]
[1741879274755,0.001,81786.0,81785.0,0.53346484]
[1741879275000,0.001,81786.0,81785.0,0.54569184]
[1741879275175,0.25677,81786.0,81785.0,0.1566]
[1741879275385,0.25677,81786.0,81785.0,0.002]
[1741879275579,0.26323737,81786.0,81785.0,0.002]
[1741879276619,0.256776,81783.0,81782.0,2e-07]
[1741879277394,0.28239173,81786.0,81785.0,0.25677]
[1741879277395,0.02562173,81786.0,81785.0,0.25677]
[1741879277599,0.02562173,81786.0,81783.0,0.244547]
[1741879277818,0.02562173,81786.0,81783.0,0.256774]
[1741879278021,0.02562173,81786.0,81785.0,0.02676785]
[1741879278294,0.0122236,81808.0,81794.0,0.012225]
[1741879278574,0.01915268,81797.0,81794.0,1.756741]
[1741879280377,0.01915268,81797.0,81794.0,1.89298284]